[Event "RUS-chT Rapid Men 2018"]
[Site "Sochi"]
[Date "2018.10.09"]
[Round "9"]
[White "Borisova, Ekaterina"]
[Black "Nuristani, Iman"]
[Result "1/2-1/2"]
[ECO "A46"]
[WhiteElo "2256"]
[BlackElo "2242"]
[Annotator "NA"]
[PlyCount "74"]
[EventDate "2018.10.05"]
[EventType "swiss"]
[EventCountry "RUS"]
[SourceTitle "playchess.com"]
[Source "ChessBase"]
[SourceQuality "1"]
[TimeControl "900+10"]

1. d4 {[%emt 0:00:00]} Nf6 {[%emt 0:00:00]} 2. Nf3 {[%emt 0:00:00]} e6 {[%emt 0:00:00]} 3. g3 {[%emt 0:00:00]} b6 {[%emt 0:00:01]} 4. Bg2 {[%emt 0:00:00]} Bb7 {[%emt 0:00:02]} 5. O-O {[%emt 0:00:00]} Be7 {[%emt 0:00:02]} 6. c4 {[%emt 0:00:01]} O-O {[%emt 0:00:03]} 7. d5 {[%emt 0:00:01]} exd5 {[%emt 0:00:04]} 8. Nh4 {[%emt 0:00:01]} c6 {[%emt 0:00:10]} 9. cxd5 {[%emt 0:00:06]} Nxd5 {[%emt 0:00:18]} 10. Nf5 {[%emt 0:00:02]} Nc7 {[%emt 0:02:23]} 11. Nc3 {[%emt 0:00:49]} d5 {[%emt 0:00:49]} 12. e4 {[%emt 0:00:02]} Nd7 {[%emt 0:01:16]} 13. exd5 {[%emt 0:00:40]} cxd5 {[%emt 0:00:47]} 14. Nxd5 {[%emt 0:01:29]} Bxd5 {[%emt 0:01:22]} 15. Nxe7+ {[%emt 0:01:46]} Qxe7 {[%emt 0:00:03]} 16. Bxd5 {[%emt 0:00:01]} Nxd5 {[%emt 0:00:07]} 17. Qxd5 {[%emt 0:00:02]} Nf6 {[%emt 0:00:07]} 18. Qf5 {[%emt 0:00:28]} Rad8 {[%emt 0:02:13]} 19. Bg5 {[%emt 0:01:05]} Rd6 {[%emt 0:02:29]} 20. Rfe1 {[%emt 0:00:28]} Qd8 {[%emt 0:00:24]} 21. Rac1 {[%emt 0:01:29]} h6 {[%emt 0:00:27]} 22. Bf4 {[%emt 0:00:50]} Rd5 {[%emt 0:00:10]} 23. Qc2 {[%emt 0:00:13]} Nh5 {[%emt 0:00:55]} 24. Be3 {[%emt 0:02:42]} Qf6 {[%emt 0:00:32]} 25. Red1 {[%emt 0:01:09]} Rfd8 {[%emt 0:01:00]} 26. Rxd5 {[%emt 0:00:57]} Rxd5 {[%emt 0:00:05]} 27. Qe4 {[%emt 0:00:38]} Qd8 {[%emt 0:00:49]} 28. Qc4 {[%emt 0:01:29]} Qd6 {[%emt 0:01:48]} 29. Qe4 {[%emt 0:00:58]} Qd7 {[%emt 0:00:36]} 30. Qc2 {[%emt 0:00:11]} Qe7 {[%emt 0:00:37]} 31. Rd1 {[%emt 0:01:33]} Qd7 {[%emt 0:00:16]} 32. Rxd5 {[%emt 0:00:17]} Qxd5 {[%emt 0:00:03]} 33. Qc8+ {[%emt 0:00:01]} Kh7 {[%emt 0:00:01]} 34. Qc2+ {[%emt 0:00:09]} Kg8 {[%emt 0:00:02]} 35. Qc8+ {[%emt 0:00:01]} Kh7 {[%emt 0:00:01]} 36. Qc2+ {[%emt 0:00:01]} Kg8 {[%emt 0:00:43]} 37. Qc8+ {[%emt 0:00:01]} Kh7 {[%emt 0:00:08]} 1/2-1/2

[Event "RUS-chT Rapid Men 2018"]
[Site "Sochi"]
[Date "2018.10.09"]
[Round "9"]
[White "Kretov, Evgenij"]
[Black "Lilyak, Arseniy"]
[Result "1-0"]
[ECO "E73"]
[WhiteElo "2219"]
[BlackElo "1509"]
[Annotator "NA"]
[PlyCount "71"]
[EventDate "2018.10.05"]
[EventType "swiss"]
[EventCountry "RUS"]
[SourceTitle "playchess.com"]
[Source "ChessBase"]
[SourceQuality "1"]
[TimeControl "900+10"]

1. d4 {[%emt 0:00:00]} Nf6 {[%emt 0:00:00]} 2. c4 {[%emt 0:00:00]} g6 {[%emt 0:00:00]} 3. Nc3 {[%emt 0:00:00]} Bg7 {[%emt 0:00:00]} 4. e4 {[%emt 0:00:00]} d6 {[%emt 0:00:00]} 5. Be2 {[%emt 0:00:00]} O-O {[%emt 0:00:00]} 6. Bg5 {[%emt 0:00:00]} Nbd7 {[%emt 0:00:04]} 7. Qd2 e5 {[%emt 0:00:56]} 8. d5 {[%emt 0:00:00]} Nc5 {[%emt 0:00:08]} 9. f3 {[%emt 0:00:00]} c6 {[%emt 0:00:44]} 10. b4 {[%emt 0:00:38]} Na6 {[%emt 0:00:21]} 11. a3 {[%emt 0:00:20]} Nc7 {[%emt 0:00:33]} 12. dxc6 {[%emt 0:00:40]} bxc6 {[%emt 0:00:06]} 13. Rd1 {[%emt 0:00:02]} Nce8 {[%emt 0:00:46]} 14. h4 {[%emt 0:00:07]} Qc7 {[%emt 0:00:10]} 15. g4 {[%emt 0:00:25]} h5 {[%emt 0:00:41]} 16. Bxf6 {[%emt 0:00:51]} Nxf6 {[%emt 0:00:41]} 17. gxh5 {[%emt 0:00:33]} Nxh5 {[%emt 0:00:13]} 18. Qxd6 {[%emt 0:00:04]} Qxd6 {[%emt 0:00:05]} 19. Rxd6 {[%emt 0:00:01]} Ng3 {[%emt 0:00:20]} 20. Rh2 {[%emt 0:00:03]} Nxe2 {[%emt 0:00:14]} 21. Ngxe2 {[%emt 0:00:10]} Bb7 {[%emt 0:00:02]} 22. h5 {[%emt 0:00:11]} gxh5 {[%emt 0:00:13]} 23. Ng3 {[%emt 0:00:21]} Rfd8 {[%emt 0:00:10]} 24. Nf5 {[%emt 0:00:32]} Rxd6 {[%emt 0:02:35]} 25. Nxd6 {[%emt 0:00:02]} Bc8 {[%emt 0:00:03]} 26. Rxh5 {[%emt 0:00:38]} Be6 {[%emt 0:00:07]} 27. c5 {[%emt 0:01:02]} a5 {[%emt 0:00:09]} 28. b5 {[%emt 0:00:12]} cxb5 {[%emt 0:00:06]} 29. Ncxb5 {[%emt 0:00:03]} Rb8 {[%emt 0:00:02]} 30. c6 {[%emt 0:01:33]} Bf8 {[%emt 0:00:24]} 31. Rxe5 {[%emt 0:00:57]} Bxd6 {[%emt 0:00:11]} 32. Nxd6 {[%emt 0:00:02]} Rb6 {[%emt 0:00:46]} 33. Rxe6 {[%emt 0:00:16]} fxe6 {[%emt 0:00:07]} 34. c7 {[%emt 0:00:02]} Rc6 {[%emt 0:00:02]} 35. c8=Q+ {[%emt 0:00:03]} Rxc8 {[%emt 0:00:02]} 36. Nxc8 {[%emt 0:00:01]} 1-0

[Event "RUS-chT Rapid Men 2018"]
[Site "Sochi"]
[Date "2018.10.09"]
[Round "9"]
[White "Okun, Evgeny"]
[Black "Asatryan, Maria"]
[Result "1-0"]
[ECO "A00"]
[WhiteElo "2163"]
[BlackElo "1498"]
[Annotator "NA"]
[PlyCount "59"]
[EventDate "2018.10.05"]
[EventType "swiss"]
[EventCountry "RUS"]
[SourceTitle "playchess.com"]
[Source "ChessBase"]
[SourceQuality "1"]
[TimeControl "900+10"]

1. g3 {[%emt 0:00:00]} c5 {[%emt 0:00:00]} 2. f4 {[%emt 0:00:00]} d6 {[%emt 0:00:00]} 3. Nf3 {[%emt 0:00:00]} Nf6 {[%emt 0:00:00]} 4. d3 {[%emt 0:00:00]} g6 {[%emt 0:00:01]} 5. Nc3 {[%emt 0:00:03]} Bg7 {[%emt 0:00:01]} 6. e4 {[%emt 0:00:02]} Nc6 {[%emt 0:00:02]} 7. Bg2 {[%emt 0:00:00]} O-O {[%emt 0:00:06]} 8. O-O {[%emt 0:00:05]} a6 {[%emt 0:00:04]} 9. h3 {[%emt 0:00:02]} Qc7 {[%emt 0:00:05]} 10. g4 {[%emt 0:00:01]} b5 {[%emt 0:00:10]} 11. g5 {[%emt 0:00:01]} Nd7 {[%emt 0:00:22]} 12. Nd5 {[%emt 0:00:03]} Qd8 {[%emt 0:00:22]} 13. c3 {[%emt 0:00:28]} Bb7 {[%emt 0:00:03]} 14. Kh1 {[%emt 0:00:25]} Nb6 {[%emt 0:00:32]} 15. Ne3 {[%emt 0:00:07]} d5 {[%emt 0:04:38]} 16. Qe2 {[%emt 0:00:13]} dxe4 {[%emt 0:00:24]} 17. dxe4 {[%emt 0:00:02]} Qc7 {[%emt 0:00:02]} 18. Ng4 {[%emt 0:00:28]} Rad8 {[%emt 0:01:19]} 19. f5 {[%emt 0:00:32]} f6 {[%emt 0:01:39]} 20. Nh4 {[%emt 0:01:28]} gxf5 {[%emt 0:05:31]} 21. Nxf5 {[%emt 0:00:13]} Bc8 {[%emt 0:00:45]} 22. Nxg7 {[%emt 0:00:25]} Kxg7 {[%emt 0:01:00]} 23. gxf6+ {[%emt 0:00:02]} Kf7 {[%emt 0:00:03]} 24. fxe7+ {[%emt 0:00:14]} Kxe7 {[%emt 0:00:02]} 25. Bg5+ {[%emt 0:00:02]} Ke8 {[%emt 0:00:41]} 26. Rxf8+ {[%emt 0:00:06]} Kxf8 {[%emt 0:00:03]} 27. Rf1+ {[%emt 0:00:10]} Kg8 {[%emt 0:00:53]} 28. Nh6+ {[%emt 0:00:13]} Kg7 {[%emt 0:00:36]} 29. Bf6+ {[%emt 0:01:39]} Kxh6 {[%emt 0:00:12]} 30. Qe3+ {[%emt 0:00:02]} 1-0

[Event "RUS-chT Rapid Men 2018"]
[Site "Sochi"]
[Date "2018.10.09"]
[Round "9"]
[White "Basiev, Valeriy P."]
[Black "Bocharov, Ivan"]
[Result "0-1"]
[ECO "C54"]
[WhiteElo "1990"]
[BlackElo "2563"]
[Annotator "ChessBase"]
[PlyCount "94"]
[EventDate "2018.10.05"]
[EventType "swiss"]
[EventCountry "RUS"]
[SourceTitle "playchess.com"]
[Source "ChessBase"]
[SourceQuality "1"]
[TimeControl "900+10"]

1. e4 {[%emt 0:00:00]} e5 {[%emt 0:00:00]} 2. Nf3 Nc6 3. Bc4 {[%emt 0:00:00]} Bc5 {[%emt 0:00:00]} 4. c3 {[%emt 0:00:00]} Nf6 {[%emt 0:00:00]} 5. d3 {[%emt 0:00:00]} O-O {[%emt 0:00:01]} 6. O-O {[%emt 0:00:03]} d6 {[%emt 0:00:03]} 7. h3 {[%emt 0:00:20]} a5 {[%emt 0:00:09]} 8. a4 {[%emt 0:00:15]} Be6 {[%emt 0:00:03]} 9. Qb3 {[%emt 0:00:36]} Bxc4 {[%emt 0:00:24]} 10. Qxc4 {[%emt 0:00:01]} Bb6 {[%emt 0:00:07]} 11. Be3 {[%emt 0:01:00]} d5 {[%emt 0:00:12]} 12. exd5 {[%emt 0:00:11]} Nxd5 {[%emt 0:00:01]} 13. Bxb6 {[%emt 0:00:30]} Nxb6 {[%emt 0:00:01]} 14. Qe4 {[%emt 0:00:01]} f5 {[%emt 0:00:32]} 15. Qe2 {[%emt 0:00:02]} Qf6 {[%emt 0:02:55]} 16. Nbd2 {[%emt 0:02:31]} Rad8 {[%emt 0:00:30]} 17. Rfd1 {[%emt 0:00:24]} Rfe8 {[%emt 0:00:17]} 18. Nf1 {[%emt 0:01:10]} Nd5 {[%emt 0:00:11]} 19. g3 {[%emt 0:00:21]} Qg6 {[%emt 0:00:10]} 20. Kh2 {[%emt 0:00:41]} Qh5 {[%emt 0:00:08]} 21. Nd4 {[%emt 0:00:51]} Qg6 {[%emt 0:00:44]} 22. Nxc6 {[%emt 0:00:08]} Qxc6 {[%emt 0:00:02]} 23. Ne3 {[%emt 0:00:25]} Nxe3 {[%emt 0:00:06]} 24. Qxe3 {[%emt 0:00:34]} Rd5 {[%emt 0:00:02]} 25. Qf3 {[%emt 0:02:13]} Qd7 {[%emt 0:00:00]} 26. c4 {[%emt 0:01:15]} Rd6 {[%emt 0:00:04]} 27. Qxb7 {[%emt 0:00:22]} Rb6 {[%emt 0:00:42]} 28. Qa7 {[%emt 0:00:50]} Rxb2 {[%emt 0:00:16]} 29. Kg1 {[%emt 0:00:18]} f4 {[%emt 0:00:21]} 30. g4 {[%emt 0:00:40]} h5 {[%emt 0:00:13]} 31. Qxa5 {[%emt 0:01:32]} hxg4 32. Qc3 gxh3 {[%emt 0:01:38]} 33. Qxb2 {[%emt 0:00:36]} Qg4+ {[%emt 0:00:01]} 34. Kf1 {[%emt 0:00:01]} h2 {[%emt 0:00:01]} 35. Qb7 {[%emt 0:00:29]} e4 {[%emt 0:00:02]} 36. Qd5+ {[%emt 0:00:56]} Kh8 {[%emt 0:00:01]} 37. Ke1 {[%emt 0:00:42]} h1=Q+ {[%emt 0:00:02]} 38. Kd2 {[%emt 0:00:01]} e3+ {[%emt 0:00:01]} 39. fxe3 {[%emt 0:00:45]} fxe3+ {[%emt 0:00:02]} 40. Kc2 {[%emt 0:00:38]} Qxd5 {[%emt 0:00:03]} 41. cxd5 {[%emt 0:00:08]} Rb8 {[%emt 0:00:04]} 42. Rh1+ {[%emt 0:00:15]} Kg8 {[%emt 0:00:01]} 43. Rh2 {[%emt 0:00:05]} Qb4 {[%emt 0:00:21]} 44. Rah1 {[%emt 0:00:16]} Qxa4+ {[%emt 0:00:05]} 45. Kc1 {[%emt 0:00:12]} Qa1+ {[%emt 0:00:07]} 46. Kc2 {[%emt 0:00:08]} Rb2+ {[%emt 0:00:03]} 47. Kc3 {[%emt 0:00:03]} Rb1+ {[%emt 0:00:02]} 0-1

[Event "RUS-chT Rapid Men 2018"]
[Site "Sochi"]
[Date "2018.10.09"]
[Round "9"]
[White "Zelenskaya, Anastasiya"]
[Black "Kostin, Alexey"]
[Result "0-1"]
[ECO "B42"]
[WhiteElo "1703"]
[BlackElo "2253"]
[Annotator "NA"]
[PlyCount "126"]
[EventDate "2018.10.05"]
[EventType "swiss"]
[EventCountry "RUS"]
[SourceTitle "playchess.com"]
[Source "ChessBase"]
[SourceQuality "1"]
[TimeControl "900+10"]

1. e4 {[%emt 0:00:00]} c5 {[%emt 0:00:00]} 2. Nf3 {[%emt 0:00:00]} e6 {[%emt 0:00:00]} 3. d4 {[%emt 0:00:00]} cxd4 {[%emt 0:00:00]} 4. Nxd4 {[%emt 0:00:00]} a6 {[%emt 0:00:00]} 5. Bd3 {[%emt 0:00:00]} Bc5 {[%emt 0:00:01]} 6. Be3 {[%emt 0:00:10]} Qb6 {[%emt 0:00:07]} 7. c3 {[%emt 0:01:41]} Nc6 {[%emt 0:00:09]} 8. Qb3 {[%emt 0:01:51]} Qxb3 {[%emt 0:00:29]} 9. axb3 {[%emt 0:00:17]} Nxd4 {[%emt 0:00:13]} 10. Bxd4 {[%emt 0:00:10]} Bxd4 {[%emt 0:00:04]} 11. cxd4 {[%emt 0:00:02]} d6 {[%emt 0:00:11]} 12. Na3 {[%emt 0:01:10]} Ke7 {[%emt 0:00:22]} 13. Nc4 {[%emt 0:00:31]} Nf6 {[%emt 0:00:06]} 14. Nb6 {[%emt 0:00:54]} Rb8 {[%emt 0:00:02]} 15. Rc1 {[%emt 0:00:18]} Bd7 {[%emt 0:00:35]} 16. Rc7 {[%emt 0:01:15]} Rhd8 {[%emt 0:00:06]} 17. Kd2 {[%emt 0:01:03]} Ne8 {[%emt 0:00:05]} 18. Rc3 {[%emt 0:01:32]} Bc6 {[%emt 0:00:22]} 19. d5 {[%emt 0:00:23]} Bd7 {[%emt 0:00:06]} 20. Rhc1 {[%emt 0:00:25]} e5 {[%emt 0:00:05]} 21. b4 {[%emt 0:01:02]} g6 {[%emt 0:00:18]} 22. f3 {[%emt 0:00:37]} f5 {[%emt 0:00:05]} 23. Nxd7 {[%emt 0:00:39]} Rxd7 {[%emt 0:00:02]} 24. exf5 {[%emt 0:00:03]} g5 {[%emt 0:00:05]} 25. g4 {[%emt 0:00:15]} Nf6 {[%emt 0:00:10]} 26. Be4 {[%emt 0:00:04]} h5 {[%emt 0:00:12]} 27. h3 {[%emt 0:00:29]} Rh8 {[%emt 0:00:04]} 28. Rc8 {[%emt 0:00:10]} Rh7 {[%emt 0:00:24]} 29. Ke3 {[%emt 0:00:47]} hxg4 {[%emt 0:00:10]} 30. hxg4 {[%emt 0:00:01]} Rh3 {[%emt 0:00:06]} 31. Rg1 {[%emt 0:00:35]} Rh2 {[%emt 0:00:14]} 32. b3 {[%emt 0:00:35]} Ne8 {[%emt 0:01:01]} 33. Rc3 {[%emt 0:00:31]} Nc7 {[%emt 0:00:10]} 34. Rgc1 {[%emt 0:00:56]} Nb5 {[%emt 0:00:08]} 35. Rd3 {[%emt 0:00:04]} Nd4 {[%emt 0:00:15]} 36. Rxd4 {[%emt 0:00:31]} exd4+ {[%emt 0:00:02]} 37. Kxd4 {[%emt 0:00:02]} Rb2 {[%emt 0:00:35]} 38. Kc3 {[%emt 0:00:40]} Rh2 {[%emt 0:00:21]} 39. Kd4 {[%emt 0:00:02]} Kd8 {[%emt 0:00:01]} 40. f4 {[%emt 0:00:47]} Rh4 {[%emt 0:01:46]} 41. Rg1 {[%emt 0:00:20]} Rg7 {[%emt 0:00:59]} 42. fxg5 {[%emt 0:00:44]} Rxg5 {[%emt 0:00:03]} 43. Bf3 {[%emt 0:00:06]} Rxf5 {[%emt 0:00:06]} 44. Ke4 {[%emt 0:00:04]} Rf7 {[%emt 0:00:29]} 45. Ke3 {[%emt 0:00:15]} Rh3 {[%emt 0:00:08]} 46. Rf1 {[%emt 0:00:04]} Rg3 {[%emt 0:00:15]} 47. Ke2 {[%emt 0:00:14]} Rf4 {[%emt 0:00:07]} 48. Rf2 {[%emt 0:00:23]} Rxb4 {[%emt 0:00:08]} 49. Rh2 {[%emt 0:00:15]} Rxb3 {[%emt 0:00:06]} 50. Rh8+ {[%emt 0:00:03]} Kc7 {[%emt 0:00:01]} 51. Rh7+ {[%emt 0:00:02]} Kb6 {[%emt 0:00:01]} 52. Rf7 {[%emt 0:00:02]} a5 {[%emt 0:00:16]} 53. Kf2 {[%emt 0:00:13]} Rbxf3+ {[%emt 0:00:03]} 54. Rxf3 {[%emt 0:00:02]} Rxg4 {[%emt 0:00:01]} 55. Rd3 {[%emt 0:00:15]} a4 {[%emt 0:00:04]} 56. Ke2 {[%emt 0:00:03]} Kc5 {[%emt 0:00:03]} 57. Rd1 {[%emt 0:00:09]} b5 {[%emt 0:00:03]} 58. Ke3 {[%emt 0:00:03]} a3 {[%emt 0:00:06]} 59. Ra1 {[%emt 0:00:10]} b4 {[%emt 0:00:02]} 60. Rd1 {[%emt 0:00:07]} a2 {[%emt 0:00:04]} 61. Kd2 {[%emt 0:00:23]} Rd4+ {[%emt 0:00:03]} 62. Kc2 {[%emt 0:00:02]} Rxd1 {[%emt 0:00:02]} 63. Kb3 {[%emt 0:00:04]} a1=Q 0-1